[Event "44th Chess Olympiad Open 2022"]
[Site "Chennai"]
[Date "2022.08.05"]
[Round "7.10"]
[White "Mekhitarian, Krikor Sevag"]
[Black "Howell, David W L"]
[Result "0-1"]
[ECO "D88"]
[WhiteElo "2542"]
[BlackElo "2650"]
[Annotator "TA"]
[PlyCount "148"]
[EventDate "2022.07.29"]
[EventType "team-tourn"]
[EventCountry "IND"]
[SourceTitle "playchess.com"]
[Source "ChessBase"]
[SourceQuality "1"]
[WhiteTeam "Brazil"]
[BlackTeam "England"]
[WhiteTeamCountry "BRA"]
[BlackTeamCountry "ENG"]
[TimeControl "40/5400+30:1800+30"]

{[%evp 21,148,18,22,14,34,25,20,23,37,13,6,12,25,18,34,12,43,42,35,43,65,54,80,77,61,20,11,27,11,18,5,0,0,0,19,8,16,14,15,0,0,-8,-15,-21,0,0,-3,-3,0,-6,-6,-31,-25,-43,-3,-4,-3,-89,-89,-89,-89,-91,-89,-84,-92,-94,-92,-113,-135,-145,-150,-191,-191,-189,-200,-202,-81,-81,-82,-81,-81,-434,-427,-427,-427,-419,-419,-659,-536,-652,-552,-29963,-29944,-29969,-29970,-29971,-29972,-29972,-29973,-29973,-29974,-29974,-29975,-29975,-29976,-29976,-29977,-29977,-29978,-29980,-29981,-29981,0,0,0,-29981,-29982,-29984,-29985,-29985,-23,-29986,-29987,-29991,-29992,-29992,-29991,-29991,-29989]} 1. d4 {[%emt 0:00:03]} Nf6 {[%emt 0:01:00]} 2. c4 {[%emt 0:00:05]} g6 {[%emt 0:01:25]} 3. Nc3 {[%emt 0:00:04]} d5 {[%emt 0:00:05]} 4. cxd5 {[%emt 0:00:02]} Nxd5 {[%emt 0:00:08]} 5. e4 {[%emt 0:00:02]} Nxc3 {[%emt 0:00:11]} 6. bxc3 {[%emt 0:00:02]} Bg7 {[%emt 0:00:13]} 7. Bc4 {[%emt 0:00:08]} c5 {[%emt 0:00:09]} 8. Ne2 {[%emt 0:00:06]} Nc6 {[%emt 0:00:08]} 9. Be3 {[%emt 0:00:04]} O-O {[%emt 0:02:12]} 10. O-O {[%emt 0:00:04]} cxd4 {[%emt 0:25:33] 10...Bg4 is a critical line.} 11. cxd4 {[%emt 0:00:06]} e6 {[%emt 0:00:09]} 12. Rc1 {[%emt 0:09:29] D88: Exchange Grünfeld: Classical Line: 10 Be3 cxd4 11 cxd4.} Bd7 {[%emt 0:01:55]} 13. Qd2 {[%emt 0:04:36]} Rc8 {[%emt 0:14:46]} 14. Rfd1 {[%emt 0:12:16] [#] The position is equal.} Qa5 $146 {[%emt 0:03:10]} ({Predecessor:} 14... Qh4 15. f3 Qe7 16. Qb2 Na5 17. Bd3 Ba4 18. Re1 Rfd8 19. Rxc8 Rxc8 {½-½ (105) Parczewski,J (1800)-Gadzala,D (1800) Poland 2005}) 15. d5 {[%emt 0:11:51]} Qxd2 {[%emt 0:04:01]} 16. Rxd2 {[%emt 0:02:57]} exd5 {[%emt 0:08:01]} 17. Bxd5 {[%emt 0:00:18]} Be6 {[%emt 0:16:49]} 18. f3 {[%emt 0:41:11]} a6 {[%emt 0:06:33]} 19. Nf4 {[%emt 0:01:16]} Bxd5 {[%emt 0:01:34]} 20. Nxd5 {[%emt 0:00:16]} Rfe8 {[%emt 0:00:12]} 21. g4 {[%emt 0:05:21]} f5 {[%emt 0:06:50]} 22. exf5 {[%emt 0:01:19]} gxf5 {[%emt 0:00:06]} 23. g5 {[%emt 0:04:25]} Kf7 {[%emt 0:00:19]} 24. Kf2 {[%emt 0:00:39]} Ne5 {[%emt 0:01:38]} 25. Rxc8 {[%emt 0:00:45]} Rxc8 {[%emt 0:00:03]} 26. Nb6 {[%emt 0:00:53]} Rc6 {[%emt 0:01:00][%cal Of5f4]} 27. Kg3 {[%emt 0:02:15]} Ke6 {[%emt 0:03:47]} 28. Nd5 {[%emt 0:01:07]} Nc4 {[%emt 0:01:07]} 29. Nf4+ {[%emt 0:00:09]} Ke7 {[%emt 0:00:10]} 30. Re2 {[%emt 0:01:00]} Kf7 {[%emt 0:00:07]} 31. Bc1 {[%emt 0:01:09]} Be5 {[%emt 0:01:03]} 32. Kg2 {[%emt 0:00:45]} Rd6 {[%emt 0:00:59]} 33. Rc2 {[%emt 0:00:34]} b5 {[%emt 0:00:12]} 34. Ne2 {[%emt 0:00:16]} Rc6 {[%emt 0:01:14][%cal Oc4e3] Threatens to win with ...Ne3+!} 35. Kf2 {[%emt 0:00:27] Inhibits Ne3.} a5 {[%emt 0:00:27]} ({But not} 35... Bxh2 36. f4 $16) 36. Bf4 {[%emt 0:00:33]} Bg7 {[%emt 0:00:13]} 37. Ng3 {[%emt 0:00:49]} Rc5 {[%emt 0:00:17]} 38. Be3 {[%emt 0:01:08]} Rd5 {[%emt 0:00:24]} 39. a4 {[%emt 0:00:27]} (39. h4 $11) 39... Nxe3 $17 {[%emt 0:01:05]} 40. Kxe3 {[%emt 0:00:45]} bxa4 {[%emt 0:00:41][%mdl 4096] Endgame KRB-KRN} 41. Ra2 {[%emt 0:14:13]} a3 {[%emt 0:17:19]} 42. Rxa3 {[%emt 0:01:26]} Bb2 $1 {[%emt 0:00:04]} 43. Rb3 {[%emt 0:08:53]} Bc1+ {[%emt 0:00:03]} 44. Kf2 {[%emt 0:00:10]} Bxg5 {[%emt 0:01:34]} 45. Rb7+ {[%emt 0:00:10]} Be7 $1 {[%emt 0:04:16]} 46. Ra7 {[%emt 0:00:38]} Ke6 {[%emt 0:03:10] And now ...Bc5+ would win.} 47. Ke2 {[%emt 0:01:58]} Bb4 {[%emt 0:02:34]} 48. Rxh7 {[%emt 0:03:16]} a4 {[%emt 0:00:27]} (48... Kd6 $1 $19 {and Black stays clearly on top. Strongly threatening ...a4.} 49. Ra7 Ke5) 49. Rh4 {[%emt 0:02:05]} Rd2+ {[%emt 0:02:48]} 50. Ke3 {[%emt 0:00:08]} Rb2 {[%emt 0:00:10] ...a3 is the strong threat. Black is more active.} 51. Rh6+ $2 {[%emt 0:01:24][%mdl 8192]} (51. Kd4 $17) 51... Kd5 $19 {[%emt 0:02:01] ( -> ...Bd2+)} 52. Ra6 {[%emt 0:00:07]} a3 {[%emt 0:00:08]} 53. Nxf5 {[%emt 0:00:58]} a2 {[%emt 0:01:12] Hoping for ...Rb3+.} 54. Kf4 {[%emt 0:01:08]} (54. Nd4 $142 Kc4 55. Ra4) 54... Kc4 {[%emt 0:00:35]} 55. Ne3+ {[%emt 0:00:46]} Kb3 {[%emt 0:00:44]} 56. h4 {[%emt 0:00:29]} Ba3 {[%emt 0:00:23]} 57. Nc4 {[%emt 0:00:05] [#]} a1=Q $1 {[%emt 0:01:02]} 58. Rxa3+ {[%emt 0:00:08]} Qxa3 {[%emt 0:00:05]} 59. Nxa3 {[%emt 0:00:02]} Kxa3 {[%emt 0:00:07] KR-KPP} 60. h5 {[%emt 0:00:35]} Kb4 {[%emt 0:00:07]} 61. h6 {[%emt 0:01:07]} Kc5 {[%emt 0:00:13]} 62. Kf5 {[%emt 0:00:47]} Kd6 {[%emt 0:00:42]} 63. Kf6 {[%emt 0:00:44]} Rh2 {[%emt 0:00:36]} 64. Kg7 {[%emt 0:00:06]} Ke7 $1 {[%emt 0:00:05]} 65. h7 {[%emt 0:00:15]} Rg2+ {[%emt 0:00:11]} 66. Kh6 {[%emt 0:00:26] [#]} Rh2+ $2 {[%emt 0:00:26]} (66... Kf7 $1 {mates} 67. h8=Q Rh2+ 68. Kg5 Rxh8 69. Kf4 Re8 70. Kf5 Re7 71. Kg4 Kg6 72. Kf4 Kf6 73. Kg4 Ke5 74. f4+ Kf6 75. f5 Re4+ 76. Kg3 Kxf5 77. Kf3 Re5 78. Kg3 Re3+ 79. Kf2 Kf4 80. Kg2 Re2+ 81. Kf1 Kf3 82. Kg1 Re1+ 83. Kh2 Rc1 84. Kh3 Rh1#) 67. Kg7 $11 {[%emt 0:00:07]} Rg2+ {[%emt 0:00:03]} 68. Kh6 {[%emt 0:00:01] [#]} Kf7 $1 {[%emt 0:00:12]} 69. h8=N+ {[%emt 0:00:28]} Kf6 {[%emt 0:00:05][%cal Rg2h2]} 70. Kh7 {[%emt 0:00:11]} Rg7+ {[%emt 0:00:16]} 71. Kh6 {[%emt 0:00:01]} Rg3 {[%emt 0:00:07][%cal Rg3h3] Black mates.} 72. Kh7 {[%emt 0:00:19]} Rxf3 {[%emt 0:01:12]} 73. Kg8 {[%emt 0:00:11]} Rg3+ {[%emt 0:00:16]} 74. Kf8 {[%emt 0:00:36]} Rg7 {[%emt 0:00:08] Weighted Error Value: White=0.42/Black=0.13 (very precise)} 0-1

[Event "44th Chess Olympiad Open 2022"]
[Site "Chennai"]
[Date "2022.08.05"]
[Round "7.10"]
[White "Haria, Ravi"]
[Black "Diamant, Andre"]
[Result "0-1"]
[ECO "C42"]
[WhiteElo "2505"]
[BlackElo "2538"]
[Annotator "TA"]
[PlyCount "122"]
[EventDate "2022.07.29"]
[EventType "team-tourn"]
[EventCountry "IND"]
[SourceTitle "playchess.com"]
[Source "ChessBase"]
[SourceQuality "1"]
[WhiteTeam "England"]
[BlackTeam "Brazil"]
[WhiteTeamCountry "ENG"]
[BlackTeamCountry "BRA"]
[TimeControl "40/5400+30:1800+30"]

{[%evp 9,122,24,26,11,10,19,17,16,26,12,18,16,21,14,20,18,29,21,24,0,6,0,9,7,0,0,10,4,12,0,18,0,0,-26,0,0,31,37,33,5,41,29,38,36,31,8,15,17,20,0,0,0,0,6,7,0,0,0,15,0,8,0,0,-11,0,-16,-11,-24,0,0,0,0,0,0,0,0,0,-6,0,-84,-84,-84,-85,-152,-152,-152,-152,-152,-152,-152,-152,-152,-152,-152,-152,-152,-63,-84,-63,-63,-63,-977,-791,-463,-411,-12837,-9345,-12831,-12831,-12839,-12839,-12836,-12837,-12847,-12847]} 1. e4 {[%emt 0:00:03]} e5 {[%emt 0:00:13]} 2. Nf3 {[%emt 0:00:07]} Nf6 {[%emt 0:00:06]} 3. Nxe5 {[%emt 0:01:45]} d6 {[%emt 0:00:05]} 4. Nf3 {[%emt 0:00:44]} Nxe4 {[%emt 0:00:05]} 5. Bd3 {[%emt 0:01:14]} Nf6 {[%emt 0:06:19]} 6. O-O {[%emt 0:00:52] C42: Petroff Defence: 3 Nxe5 and unusual White 3rd moves.} Be7 {[%emt 0:00:09]} 7. c3 {[%emt 0:01:31]} O-O {[%emt 0:00:57]} 8. Re1 {[%emt 0:00:09] The position is equal.} Bg4 {[%emt 0:05:25] [#]} 9. Be2 $146 {[%emt 0:03:38]} ({Predecessor:} 9. Bc2 Re8 10. d4 Bf8 11. Be3 Nbd7 12. Nbd2 Nb6 13. h3 Bh5 14. c4 c6 15. Bd3 {1-0 (64) Bachmann,A (2645)-Saric,A (2540) Chess.com INT 2016}) 9... Nbd7 {[%emt 0:07:18]} 10. d4 {[%emt 0:03:49]} c6 {[%emt 0:12:43]} 11. h3 {[%emt 0:02:08]} Bh5 {[%emt 0:08:02]} 12. Bf4 {[%emt 0:08:12]} Re8 {[%emt 0:04:31]} 13. Nbd2 {[%emt 0:03:36]} d5 {[%emt 0:01:41]} 14. Ne5 {[%emt 0:02:54]} Bxe2 {[%emt 0:00:58]} 15. Rxe2 {[%emt 0:00:08]} Bf8 {[%emt 0:08:40]} 16. Qc2 {[%emt 0:12:41]} Nxe5 {[%emt 0:01:07]} 17. dxe5 {[%emt 0:02:55]} Nd7 {[%emt 0:00:08]} 18. Rae1 {[%emt 0:05:02]} Nc5 {[%emt 0:01:03]} 19. Bg3 {[%emt 0:09:42]} a5 {[%emt 0:18:21]} 20. Kh1 {[%emt 0:07:01]} Qg5 {[%emt 0:04:38]} 21. c4 {[%emt 0:07:45]} Rac8 {[%emt 0:06:28]} 22. Nf3 {[%emt 0:06:00]} Qh5 {[%emt 0:03:37]} 23. cxd5 {[%emt 0:00:40]} cxd5 {[%emt 0:00:02]} 24. Qd1 {[%emt 0:01:35]} a4 {[%emt 0:03:06]} 25. Rd2 {[%emt 0:01:31]} ({Much worse is} 25. Qxd5 Red8 26. Qc4 Nd3 27. Qxa4 Nxe1 28. Rxe1 Qf5 $15) 25... a3 {[%emt 0:01:26]} 26. bxa3 {[%emt 0:03:54]} Ne4 {[%emt 0:00:25]} 27. Rc2 {[%emt 0:00:46]} ({Reject} 27. Rxd5 Nc3 28. Qd4 Nxd5 29. Qxd5 b6 $15) 27... Rxc2 {[%emt 0:00:43]} 28. Qxc2 {[%emt 0:00:08]} Bc5 {[%emt 0:02:58]} 29. Rd1 {[%emt 0:05:43]} Qg6 {[%emt 0:02:19]} 30. Kh2 {[%emt 0:01:14]} Nxf2 {[%emt 0:01:15]} 31. Qxg6 {[%emt 0:00:21]} hxg6 {[%emt 0:00:04]} 32. Rxd5 {[%emt 0:03:00]} Ne4 {[%emt 0:00:07]} 33. Bf4 {[%emt 0:02:39]} Bxa3 {[%emt 0:00:45]} 34. Be3 {[%emt 0:02:24]} Bf8 {[%emt 0:01:01]} 35. Rd7 {[%emt 0:01:09]} b5 {[%emt 0:00:17][%cal Bb7b5,Bb5b4,Bb4c3][%mdl 32]} 36. Rb7 {[%emt 0:00:40]} b4 {[%emt 0:00:17]} 37. Bd4 {[%emt 0:00:37]} Ra8 {[%emt 0:00:17]} 38. h4 {[%emt 0:00:26]} Nc3 {[%emt 0:01:19]} 39. Bxc3 {[%emt 0:00:26]} bxc3 $11 {[%emt 0:00:02][%mdl 4096] Endgame KRB-KRN} 40. Rc7 {[%emt 0:00:08] Inhibits Rc8.} Bb4 {[%emt 0:14:36]} 41. Kg3 {[%emt 0:14:01]} Kf8 {[%emt 0:00:00]} 42. Rc4 {[%emt 0:03:07]} Ba5 {[%emt 0:00:00]} 43. Kf4 {[%emt 0:00:47]} Rb8 {[%emt 0:00:00]} 44. Rc5 {[%emt 0:07:58]} (44. Ke4 $11 {keeps the balance.}) 44... Rb4+ $17 {[%emt 0:00:00]} 45. Kg3 {[%emt 0:00:02]} Ra4 {[%emt 0:00:11]} 46. e6 {[%emt 0:06:32]} (46. a3 $142) 46... fxe6 {[%emt 0:00:53]} ({Weaker is} 46... Rxa2 47. exf7 Kxf7 48. Kf4 $17) 47. Ne5 {[%emt 0:00:43]} Rxa2 {[%emt 0:01:58] White must now prevent ...c2.} 48. Nc6 {[%emt 0:00:36]} Bc7+ {[%emt 0:01:24]} 49. Kf3 {[%emt 0:00:18] [#]} Rf2+ $3 {[%emt 0:05:02][%mdl 512]} 50. Kxf2 {[%emt 0:00:56]} Bb6 {[%emt 0:00:04]} 51. Ke2 {[%emt 0:00:24]} Bxc5 {[%emt 0:00:13] KB-KN} 52. Kd3 {[%emt 0:01:00]} Bf2 {[%emt 0:03:45]} (52... Bd6 $17 53. Nd4 Ke7) 53. Ne5 $15 {[%emt 0:00:02]} g5 {[%emt 0:03:57]} 54. hxg5 {[%emt 0:00:50]} Be1 {[%emt 0:00:09]} 55. Nf3 $2 {[%emt 0:00:51][%mdl 8192] [#] This costs White the game.} (55. g6 $15) 55... Bd2 $1 $19 {[%emt 0:00:06]} 56. Nd4 {[%emt 0:00:34]} Kf7 {[%emt 0:00:40] Strongly threatening ...e5.} 57. g3 {[%emt 0:00:30]} (57. Nb3 $142 Kg6 58. Nd4) 57... Bxg5 {[%emt 0:01:12] Black is clearly winning.} 58. Nf3 {[%emt 0:00:30]} Bf6 {[%emt 0:00:50]} 59. g4 {[%emt 0:00:05]} Kg6 {[%emt 0:03:05]} 60. Ke3 {[%emt 0:00:53]} e5 {[%emt 0:01:07]} 61. g5 {[%emt 0:00:31]} Bxg5+ {[%emt 0:02:51] Weighted Error Value: White=0.45/Black=0.14 (very precise)} 0-1

[Event "44th Chess Olympiad Open 2022"]
[Site "Chennai"]
[Date "2022.08.05"]
[Round "7.11"]
[White "Maghsoodloo, Parham"]
[Black "Smirnov, Anton"]
[Result "1-0"]
[ECO "D10"]
[WhiteElo "2701"]
[BlackElo "2600"]
[Annotator "TA"]
[PlyCount "43"]
[EventDate "2022.07.29"]
[EventType "team-tourn"]
[EventCountry "IND"]
[SourceTitle "playchess.com"]
[Source "ChessBase"]
[SourceQuality "1"]
[WhiteTeam "Iran"]
[BlackTeam "Australia"]
[WhiteTeamCountry "IRI"]
[BlackTeamCountry "AUS"]
[TimeControl "40/5400+30:1800+30"]

{[%evp 9,43,-4,10,13,14,15,14,0,8,11,31,20,87,32,37,37,139,56,199,223,206,201,252,255,350,298,482,470,515,355,754,748,845,851,837,807]} 1. d4 {[%emt 0:00:02] ChessBase II} d5 {[%emt 0:00:04]} 2. c4 {[%emt 0:00:10]} c6 {[%emt 0:00:02]} 3. e3 {[%emt 0:00:07]} Bf5 {[%emt 0:08:28]} 4. Nc3 {[%emt 0:00:15]} e6 {[%emt 0:00:18]} 5. f3 {[%emt 0:00:12]} Nf6 {[%emt 0:03:16]} 6. g4 {[%emt 0:00:11] D10: Slav Defence: 3 cxd5 (without early Nf3) and 3 Nc3.} Bg6 {[%emt 0:00:17]} 7. h4 {[%emt 0:00:11] [#] Hoping for h5.} h6 {[%emt 0:06:16] [#]} 8. Nge2 $146 {[%emt 0:04:23] The position is equal.} ({Predecessor:} 8. h5 Bh7 9. Bd3 Bxd3 10. Qxd3 Nbd7 11. Nge2 a6 12. Bd2 dxc4 13. Qxc4 c5 14. Qb3 cxd4 15. exd4 {1-0 (33) Kozul,Z (2568)-Benitah,Y (2401) Aix les Bains 2011 CBM 142 Extra [ChessBase II]}) 8... Bd6 {[%emt 0:04:59]} 9. Qb3 {[%emt 0:08:06]} b6 {[%emt 0:10:30]} 10. cxd5 {[%emt 0:01:50]} exd5 {[%emt 0:00:59]} (10... cxd5 $11 11. Nf4 Bh7) 11. Nf4 {[%emt 0:08:03]} (11. Bd2 $16) 11... Bh7 $1 $14 {[%emt 0:02:18]} 12. Bd2 {[%emt 0:03:33]} g5 {[%emt 0:06:43]} (12... O-O $14) 13. Nfe2 {[%emt 0:03:31] White is more active.} ({White should play} 13. hxg5 $16 hxg5 14. Nfe2) 13... Qe7 {[%emt 0:09:03] Black cannot hold the game after this.} (13... Na6 $1 $14) 14. hxg5 $18 {[%emt 0:04:29]} hxg5 {[%emt 0:00:07] [#]} 15. Bg2 $1 {[%emt 0:00:16][%cal Oe3e4] Black must now prevent e4!} Na6 {[%emt 0:04:47]} 16. e4 $1 {[%emt 0:03:28][%cal Be3e4,Be4d5][%mdl 32]} Nd7 {[%emt 0:04:10]} 17. exd5 {[%emt 0:08:54]} c5 $2 {[%emt 0:11:00]} (17... O-O-O 18. Ne4 (18. dxc6 Ndc5 $18) 18... Bxe4 19. fxe4 Rxh1+ 20. Bxh1 Rh8) 18. Ne4 {[%emt 0:01:20]} f6 {[%emt 0:03:07]} 19. Qd3 {[%emt 0:08:10]} c4 $2 {[%emt 0:10:26]} (19... Bxe4 20. Rxh8+ Kf7 21. fxe4 Rxh8 22. Qxa6 Rh2) 20. Qxc4 {[%emt 0:01:17] White is clearly winning.} Nc7 {[%emt 0:06:34]} 21. Nxd6+ {[%emt 0:00:12]} Qxd6 {[%emt 0:00:07]} 22. Bb4 {[%emt 0:00:03] Weighted Error Value: White=0.18 (very precise) /Black=0.60} 1-0

[Event "44th Chess Olympiad Open 2022"]
[Site "Chennai"]
[Date "2022.08.05"]
[Round "7.11"]
[White "Idani, Pouya"]
[Black "Cheng, Bobby"]
[Result "1-0"]
[ECO "C21"]
[WhiteElo "2641"]
[BlackElo "2540"]
[Annotator "ChessBase"]
[PlyCount "79"]
[EventDate "2022.07.29"]
[EventType "team-tourn"]
[EventCountry "IND"]
[SourceTitle "playchess.com"]
[Source "ChessBase"]
[SourceQuality "1"]
[WhiteTeam "Iran"]
[BlackTeam "Australia"]
[WhiteTeamCountry "IRI"]
[BlackTeamCountry "AUS"]
[TimeControl "40/5400+30:1800+30"]

1. e4 {[%emt 0:00:02]} e5 {[%emt 0:00:05]} 2. d4 {[%emt 0:00:48]} exd4 {[%emt 0:00:50]} 3. Nf3 {[%emt 0:00:05]} Bb4+ {[%emt 0:05:04]} 4. c3 {[%emt 0:02:30]} dxc3 {[%emt 0:00:49]} 5. Nxc3 {[%emt 0:00:25]} Nf6 {[%emt 0:33:15]} 6. e5 {[%emt 0:02:52]} Ne4 {[%emt 0:00:21]} 7. Qd4 {[%emt 0:03:33]} Bxc3+ {[%emt 0:01:07]} 8. bxc3 {[%emt 0:00:15]} d5 {[%emt 0:00:04]} 9. Ba3 {[%emt 0:11:42]} c5 {[%emt 0:03:56]} 10. Bxc5 {[%emt 0:04:47]} Nc6 {[%emt 0:01:01]} 11. Bb5 {[%emt 0:06:58]} Qa5 {[%emt 0:05:33]} 12. a4 {[%emt 0:02:33]} Bd7 {[%emt 0:04:33]} 13. Bxc6 {[%emt 0:01:37]} Bxc6 {[%emt 0:00:10]} 14. Bb4 {[%emt 0:00:20]} Qa6 {[%emt 0:00:22]} 15. Nh4 {[%emt 0:04:07]} O-O-O {[%emt 0:05:43]} 16. Nf5 {[%emt 0:06:12]} Kb8 {[%emt 0:11:32]} 17. f3 {[%emt 0:10:49]} Ng5 {[%emt 0:00:04]} 18. Kf2 {[%emt 0:03:04]} Ne6 {[%emt 0:05:26]} 19. Qe3 {[%emt 0:01:19]} Qc4 {[%emt 0:07:37]} 20. Nd6 {[%emt 0:04:31]} Qh4+ {[%emt 0:00:03]} 21. g3 {[%emt 0:00:32]} Qh5 {[%emt 0:00:03]} 22. h4 {[%emt 0:06:05]} f6 {[%emt 0:04:50]} 23. g4 {[%emt 0:07:06]} Qg6 {[%emt 0:03:19]} 24. h5 {[%emt 0:01:30]} Qc2+ {[%emt 0:01:01]} 25. Kg3 {[%emt 0:02:59]} Ng5 {[%emt 0:06:50]} 26. exf6 {[%emt 0:03:27]} gxf6 {[%emt 0:00:00]} 27. Rh2 {[%emt 0:02:39]} Qb3 {[%emt 0:00:00]} 28. Nb5 {[%emt 0:00:41]} a6 {[%emt 0:00:00]} 29. Qf4+ {[%emt 0:02:04]} Ka8 {[%emt 0:00:00]} 30. Nc7+ {[%emt 0:00:33]} Ka7 {[%emt 0:00:31]} 31. Bc5+ {[%emt 0:02:09]} b6 {[%emt 0:00:04]} 32. Nb5+ {[%emt 0:00:11]} Ka8 {[%emt 0:00:20]} 33. Qc7 {[%emt 0:00:20]} Ne4+ {[%emt 0:00:47]} 34. fxe4 {[%emt 0:00:23]} Bxb5 {[%emt 0:00:40]} 35. axb5 {[%emt 0:02:08]} Qxc3+ {[%emt 0:00:59]} 36. Kh4 {[%emt 0:00:05]} Qxa1 {[%emt 0:00:18]} 37. Qc6+ {[%emt 0:00:04]} Kb8 {[%emt 0:00:05]} 38. Qxb6+ {[%emt 0:00:05]} Kc8 {[%emt 0:00:12]} 39. Qc6+ {[%emt 0:00:04]} Kb8 {[%emt 0:00:05]} 40. Ba7+ {[%emt 0:00:22]} 1-0

[Event "44th Chess Olympiad Open 2022"]
[Site "Chennai"]
[Date "2022.08.05"]
[Round "7.11"]
[White "Kuybokarov, Temur"]
[Black "Tabatabaei, M. Amin"]
[Result "1/2-1/2"]
[ECO "C84"]
[WhiteElo "2583"]
[BlackElo "2664"]
[Annotator "TA"]
[PlyCount "105"]
[EventDate "2022.07.29"]
[EventType "team-tourn"]
[EventCountry "IND"]
[SourceTitle "playchess.com"]
[Source "ChessBase"]
[SourceQuality "1"]
[WhiteTeam "Australia"]
[BlackTeam "Iran"]
[WhiteTeamCountry "AUS"]
[BlackTeamCountry "IRI"]
[TimeControl "40/5400+30:1800+30"]

{[%evp 13,105,18,22,0,2,15,10,0,9,-3,22,10,15,11,13,19,12,9,58,31,37,41,46,45,54,37,50,41,43,41,31,27,45,21,32,17,14,13,49,29,38,0,0,-13,-12,-59,-64,-59,-25,-25,-9,-25,0,-58,-4,-34,-25,-37,-45,-40,-45,-66,-59,-130,-65,-52,-54,-62,0,0,0,-8,-8,-8,-8,-8,-8,-8,-8,-47,0,0,0,0,0,-8,0,0,0,-7,0,0,0,-8]} 1. e4 {[%emt 0:00:05]} e5 {[%emt 0:00:06]} 2. Nf3 {[%emt 0:00:28]} Nc6 {[%emt 0:00:07]} 3. Bb5 {[%emt 0:00:12][%cal Bf1b5,Bb5a4,Ba4b3,Bb3a2][%mdl 32]} a6 {[%emt 0:00:27]} 4. Ba4 {[%emt 0:00:05]} Nf6 {[%emt 0:00:08]} 5. O-O {[%emt 0:00:14]} Be7 {[%emt 0:00:35]} 6. d3 {[%emt 0:00:38]} b5 {[%emt 0:00:17]} 7. Bb3 {[%emt 0:00:07]} d6 {[%emt 0:00:12]} 8. a3 {[%emt 0:00:49] C84: Closed Ruy Lopez: Unusual White 6th moves.} Na5 {[%emt 0:03:02]} 9. Ba2 {[%emt 0:00:24]} c5 {[%emt 0:00:13]} 10. Nc3 {[%emt 0:00:14]} Be6 {[%emt 0:00:47]} 11. Nh4 {[%emt 0:00:03]} Ra7 {[%emt 0:00:47]} 12. Nf5 {[%emt 0:09:34]} Bxf5 {[%emt 0:00:29]} 13. exf5 {[%emt 0:00:04] [#]} d5 $146 {[%emt 0:00:17]} ({Predecessor:} 13... Qd7 14. Qf3 Nc6 15. Be3 O-O 16. g4 Nd4 17. Bxd4 cxd4 18. Ne4 Nxe4 19. dxe4 Rc7 {½-½ (66) Martin Barcelo,C (2258)-Garcia Payas,A (1892) Salou 2021}) 14. Bg5 {[%emt 0:23:19]} Rd7 {[%emt 0:00:43]} 15. Qe1 {[%emt 0:07:19]} Nc6 {[%emt 0:01:50]} (15... c4 $11) 16. f4 $14 {[%emt 0:00:58]} h6 {[%emt 0:01:28]} 17. Bh4 {[%emt 0:00:46]} (17. fxe5 hxg5 18. exf6 gxf6 $15) 17... exf4 {[%emt 0:00:46]} 18. Bxf6 {[%emt 0:00:15]} ({Reject} 18. Rxf4 O-O $17) 18... gxf6 {[%emt 0:00:09]} 19. Ne2 {[%emt 0:02:04]} O-O {[%emt 0:04:45][%cal Bh8f8,Bf8g8,Bg8g4,Bg4g5][%mdl 32]} 20. Qh4 {[%emt 0:02:38]} Kh7 {[%emt 0:01:18]} 21. Rae1 {[%emt 0:06:45][%cal Ba1e1,Be1e3,Be3g3][%mdl 32]} Rg8 {[%emt 0:03:22]} 22. Nxf4 {[%emt 0:01:16]} Ne5 {[%emt 0:11:08]} 23. Re3 {[%emt 0:07:03]} Rg4 {[%emt 0:07:58]} 24. Qh3 {[%emt 0:00:53][%cal Of4e6] next Ne6! is good for White.} Rg5 {[%emt 0:00:49]} 25. Rg3 {[%emt 0:01:04]} Kg7 {[%emt 0:05:23]} 26. Qh4 {[%emt 0:03:37]} (26. Re1 $5 {[%cal Re1e3]}) 26... Kh7 {[%emt 0:02:24]} 27. Nh5 {[%emt 0:04:40]} Qg8 {[%emt 0:02:33]} 28. Re1 {[%emt 0:06:35]} Rxg3 {[%emt 0:20:17]} 29. hxg3 {[%emt 0:00:41]} (29. Nxg3 $11 {was preferrable.} Qg5 30. Qxg5 hxg5 31. h3) 29... Qg5 $15 {[%emt 0:00:01]} 30. Nf4 {[%emt 0:02:47]} d4 {[%emt 0:00:46]} (30... c4 $5 {[%cal Re7c5]} 31. d4 Ng4 $17) 31. Bd5 {[%emt 0:01:11]} c4 {[%emt 0:01:19]} 32. Be4 {[%emt 0:04:59]} Kg8 {[%emt 0:01:36]} 33. Nd5 {[%emt 0:01:34]} ({White should try} 33. Kf1 $11) 33... Kf8 {[%emt 0:03:37]} ({Better is} 33... Qd2 $15 34. Rf1 Kg7) 34. Qf4 {[%emt 0:01:57]} Kg7 {[%emt 0:02:31]} 35. Kf1 {[%emt 0:04:01]} Bd6 {[%emt 0:01:38]} 36. Qxg5+ {[%emt 0:01:02]} hxg5 {[%emt 0:00:14]} 37. Ke2 {[%emt 0:00:28]} a5 {[%emt 0:03:41]} 38. a4 {[%emt 0:01:23]} (38. Ra1 $15) 38... bxa4 {[%emt 0:01:31]} (38... cxd3+ $17 39. cxd3 bxa4) 39. Ra1 $1 {[%emt 0:03:18]} cxd3+ {[%emt 0:16:39]} 40. Bxd3 {[%emt 0:00:38]} Rb7 {[%emt 0:00:09]} (40... a3 $15 41. bxa3 Bc5) 41. Rxa4 $11 {[%emt 0:30:20]} Rxb2 {[%emt 0:30:08]} 42. Rxa5 {[%emt 0:02:24]} Nxd3 {[%emt 0:00:42]} 43. Kxd3 {[%emt 0:00:00]} Bxg3 {[%emt 0:00:00][%mdl 4096] Endgame KRB-KRN} 44. Ra8 {[%emt 0:00:00]} Rb1 {[%emt 0:00:00]} 45. Kxd4 {[%emt 0:00:00]} Rg1 {[%emt 0:00:00]} 46. Ne7 {[%emt 0:00:00]} Rxg2 {[%emt 0:00:00]} (46... Re1 $1 $15 {is more appropriate.} 47. Rg8+ Kh7) 47. Rg8+ {[%emt 0:00:00] The position is equal.} Kh7 {[%emt 0:00:00] [#] Hoping for ...Re2.} 48. Rf8 {[%emt 0:00:00]} Be5+ {[%emt 0:00:00]} (48... Kg7 $5 49. Rg8+ Kh6 $11) 49. Ke4 {[%emt 0:00:00]} Kg7 {[%emt 0:00:00]} 50. Rg8+ {[%emt 0:00:00]} Kh7 {[%emt 0:00:00] Strongly threatening ...Bd6.} 51. Rf8 $1 {[%emt 0:00:00]} Kg7 {[%emt 0:00:00]} 52. Rg8+ {[%emt 0:00:00]} Kh7 {[%emt 0:00:00] [#] aiming for ...Bd6.} 53. Rf8 $1 {[%emt 0:00:00] Weighted Error Value: White=0.12 (very precise) /Black=0.10 (very precise)} 1/2-1/2